bitfinex-derivatives/quotes_ETHF0:USTF0_20260314
["timestamp","ask_amount","ask_price","bid_price","bid_amount"]
[1773475352005,0.54203911,2078.1,2077.3,40.80480212]
[1773475352203,0.54203911,2078.1,2077.3,48.35254186]
[1773475353204,0.54203911,2078.1,2077.3,48.93904852]
[1773475357309,0.54203911,2078.1,2077.3,7.55254186]
[1773475358011,0.54203911,2078.1,2077.3,0.00480212]
[1773475359012,0.54203911,2078.1,2077.3,0.59130878]
[1773475359709,0.54203911,2078.1,2077.4,0.58650666]
[1773475386231,0.54203911,2078.1,2077.5,0.57202649]
[1773475388526,0.56995965,2078.0,2077.5,0.57202649]
[1773475390621,0.00580849,2078.1,2077.5,0.57202649]
[1773475390829,0.00580849,2078.1,2077.5,8.11976623]
[1773475391024,0.00580849,2078.1,2077.6,0.57202649]
[1773475393628,0.56995965,2078.4,2077.6,0.57202649]
[1773475393826,0.56995965,2078.4,2077.8,0.57202649]
[1773475394525,0.56995965,2078.4,2077.6,0.57202649]
[1773475394723,0.57482526,2078.4,2077.6,0.57202649]
[1773475397636,0.57482526,2078.4,2077.4,8.11976623]
[1773475398037,0.56995965,2078.2,2077.4,8.11976623]
[1773475398337,0.56995965,2078.2,2077.5,0.57202649]
[1773475400834,0.56995965,2078.1,2077.4,0.57202649]
[1773475430158,0.58045399,2078.0,2077.3,0.00480212]
[1773475430362,0.58045399,2077.9,2077.3,0.00480212]
[1773475430654,0.58045399,2077.7,2077.1,8.089674]
[1773475430860,0.58045399,2077.6,2076.9,0.54193426]
[1773475431253,0.54335124,2077.5,2076.9,0.54193426]
[1773475431959,0.54335124,2077.5,2076.9,0.54679287]
[1773475436556,0.54335124,2077.6,2076.9,0.54679287]
[1773475437163,0.54335124,2077.7,2076.9,0.54679287]
[1773475437560,7.97335124,2077.8,2076.9,0.54679287]
[1773475438064,0.54335124,2077.7,2076.9,0.54679287]
[1773475440863,0.54335124,2077.3,2076.5,0.55786644]
[1773475441261,0.54335124,2077.2,2076.5,0.55786644]
[1773475441562,0.54335124,2077.2,2076.3,0.55786644]
[1773475441858,0.54335124,2077.2,2076.3,0.56293535]
[1773475463278,0.5848387,2077.1,2076.3,0.56293535]
[1773475471082,0.5848387,2077.0,2076.3,0.56293535]
[1773475471280,0.5848387,2077.2,2076.3,0.56293535]
[1773475471582,0.5848387,2077.0,2076.3,0.56293535]
[1773475479782,0.5848387,2077.0,2076.3,0.00506891]
[1773475480983,6.01299647,2076.9,2076.3,0.00506891]
[1773475481183,0.5848387,2076.8,2076.3,0.57222085]
[1773475481482,0.00389106,2076.9,2076.3,0.57222085]
[1773475481887,6.01454634,2076.9,2076.3,0.57222085]
[1773475482291,0.00389106,2076.9,2076.3,0.57222085]
[1773475482889,6.01340876,2076.9,2076.3,0.57222085]
[1773475483094,0.00389106,2076.9,2076.3,0.57222085]
[1773475489701,0.59873682,2076.9,2076.3,0.57222085]
[1773475497307,0.00389106,2076.9,2076.3,0.57222085]
[1773475498002,0.24440357,2077.5,2076.3,0.57222085]
[1773475498003,0.59496157,2077.8,2076.7,10.10994031]
[1773475498199,0.59496157,2077.8,2076.6,23.722]
[1773475498398,0.59496157,2077.8,2076.7,40.8]
[1773475499007,0.59935442,2077.8,2076.7,40.8]
[1773475506613,0.59935442,2077.8,2076.7,41.04206646]
[1773475512313,0.59935442,2077.8,2076.7,40.8]
[1773475522019,0.00439285,2077.8,2076.7,40.8]
[1773475524214,0.61225672,2077.8,2076.7,40.8]
[1773475524718,0.00439285,2077.8,2076.7,40.8]
[1773475526321,0.00439285,2077.8,2076.7,50.90994031]
[1773475526820,0.00439285,2077.8,2076.8,0.24071]
[1773475527125,0.00439285,2077.8,2076.9,10.10994031]
[1773475527329,0.00439285,2077.8,2077.0,34.09894031]
[1773475527617,0.60973365,2078.4,2077.2,10.10994031]
[1773475527818,0.60973365,2078.3,2077.2,10.10994031]
[1773475528124,0.60973365,2078.3,2077.1,10.10994031]
[1773475528528,0.61565946,2078.3,2077.1,10.10994031]
[1773475531219,0.61565946,2078.3,2077.2,24.04]
[1773475533026,0.61565946,2078.3,2077.0,51.14608776]
[1773475533228,0.61565946,2078.3,2077.3,24.064]
[1773475540434,0.61565946,2078.3,2077.3,24.30255526]
[1773475540933,0.61565946,2078.3,2077.3,24.064]
[1773475548634,0.00592581,2078.3,2077.3,24.064]
[1773475556349,0.00592581,2078.3,2077.3,34.17394031]
[1773475557747,0.00592581,2078.3,2077.4,10.10994031]
[1773475558149,0.00592581,2078.3,2077.5,10.10994031]
[1773475558447,0.61190081,2078.7,2077.5,10.10994031]
[1773475558646,0.61190081,2078.7,2077.4,10.10994031]
[1773475558647,0.61190081,2078.6,2077.4,10.10994031]
[1773475558847,0.61141197,2078.5,2077.4,10.10994031]
[1773475559047,0.61141197,2078.5,2077.5,10.10994031]
[1773475559351,0.61588355,2078.5,2077.4,10.10994031]
[1773475559551,0.00447158,2078.5,2077.5,10.10994031]
[1773475560953,0.61409819,2078.9,2077.6,0.24062]
[1773475561154,0.61409819,2078.8,2077.6,10.35056031]
[1773475561954,0.61793731,2078.8,2077.7,40.8]
[1773475562254,0.61793731,2078.8,2077.8,24.189]
[1773475562454,0.61793731,2078.8,2077.8,24.19432729]
[1773475566450,0.61793731,2078.8,2077.8,0.00532729]
[1773475566656,0.61793731,2078.8,2077.8,24.23432729]
[1773475567353,0.61793731,2078.8,2077.9,40.8]
[1773475579568,0.00383912,2078.8,2077.9,40.8]
[1773475583059,0.62920999,2078.8,2077.9,40.8]
[1773475592276,0.62904555,2078.8,2077.9,40.8]
[1773475592474,0.62904555,2078.8,2077.9,50.90994031]
[1773475593279,0.62904555,2078.8,2077.9,40.8]
[1773475593578,0.62904555,2078.8,2077.9,50.90994031]
[1773475593779,0.62904555,2078.8,2077.9,40.8]
[1773475596683,0.62904555,2078.8,2078.0,24.522]
[1773475611087,0.62904555,2078.8,2078.0,65.322]
[1773475619095,0.62904555,2078.8,2078.0,24.522]
[1773475619597,0.61579019,2078.7,2078.0,24.522]
[1773475635316,0.60766445,2078.6,2078.0,24.522]
[1773475635715,0.60766445,2078.6,2077.8,0.24482411]
[1773475636014,0.60766445,2078.6,2077.8,25.08032729]
[1773475636216,0.60766445,2078.6,2077.8,65.88032729]
[1773475650726,5.85333227,2078.7,2077.8,65.88032729]
[1773475651026,0.00383912,2078.8,2077.8,65.88032729]
[1773475660627,0.60222407,2078.8,2077.8,65.88032729]
[1773475674447,0.00383912,2078.8,2077.8,65.88032729]
[1773475674644,0.59893756,2078.8,2077.8,75.9902676]
[1773475674843,0.59893756,2078.8,2077.9,0.00256901]
[1773475675345,0.00383912,2078.8,2077.9,0.00256901]
[1773475679643,0.57992,2078.8,2078.0,0.03742356]
[1773475680942,0.00383912,2078.8,2078.0,0.03742356]
[1773475682241,0.00383912,2078.8,2078.2,0.05357367]
[1773475682645,0.00383912,2078.8,2078.3,0.05357367]
[1773475683044,0.00383912,2078.8,2078.4,0.05366619]
[1773475683542,0.56795957,2079.1,2078.4,0.05366619]
[1773475684747,0.57386694,2079.1,2078.4,0.05366619]
[1773475689654,0.57386694,2079.1,2078.5,0.0540054]
[1773475695965,0.53858496,2079.1,2078.5,0.0540054]
[1773475696169,0.53858496,2079.4,2078.5,0.0540054]
[1773475696969,0.54311912,2079.4,2078.5,0.0540054]
[1773475703873,0.54404707,2079.3,2078.5,0.0540054]
[1773475711174,0.54404707,2079.3,2078.6,0.5741684]
[1773475716377,0.54404707,2079.3,2078.7,0.5741684]
[1773475725275,0.54404707,2079.3,2078.8,0.5741684]
[1773475732481,0.53712793,2079.6,2078.9,0.56609664]
[1773475732682,0.53712793,2079.6,2079.0,0.56609664]
[1773475732876,5.80395495,2080.0,2079.1,0.56609664]
[1773475732877,0.53712793,2079.9,2079.1,0.56609664]
[1773475733184,0.53712793,2079.9,2079.3,0.56609664]
[1773475733585,0.54105407,2079.9,2079.3,0.56970729]
[1773475734085,0.54105407,2079.9,2079.3,41.36970729]
[1773475736287,0.54105407,2079.9,2079.4,0.56609664]
[1773475741292,0.54105407,2079.9,2079.3,40.80361065]
[1773475741493,0.54105407,2079.9,2078.9,7.80215825]
[1773475741692,0.54105407,2079.9,2078.9,0.80781154]
[1773475741894,0.54105407,2079.9,2079.0,40.8]
[1773475742396,0.54105407,2079.9,2078.9,0.80781154]
[1773475742596,0.54105407,2079.9,2078.9,0.8117279]
[1773475742796,0.54105407,2079.9,2078.9,41.6117279]
[1773475743499,0.54105407,2079.9,2079.0,0.56609664]
[1773475749604,0.54105407,2079.9,2079.2,0.56609664]
[1773475754306,0.54105407,2079.9,2079.3,0.56609664]
[1773475774515,5.88680897,2080.1,2079.7,0.55870425]
[1773475774717,0.58097961,2080.2,2079.7,0.55870425]
[1773475775618,0.58454006,2080.2,2079.7,0.55870425]
[1773475776010,0.58097961,2080.1,2079.2,0.55870425]
[1773475776215,0.58097961,2080.0,2079.2,0.55870425]
[1773475778116,0.58097961,2079.7,2079.0,0.55870425]
[1773475779421,0.58097961,2079.7,2078.9,40.80391636]
[1773475779621,0.58097961,2079.3,2078.9,0.00391636]
[1773475780024,0.58097961,2079.5,2078.9,0.56262061]
[1773475780821,0.24036,2079.9,2078.9,0.56262061]
[1773475780822,5.83315811,2079.9,2078.9,0.56262061]
[1773475781026,0.58097961,2079.8,2079.4,0.55870425]
[1773475781329,0.58097961,2079.8,2079.2,0.55870425]
[1773475781825,0.58097961,2079.8,2079.1,0.55870425]
[1773475782030,0.58097961,2079.8,2079.0,25.50070425]
[1773475782529,0.58097961,2079.8,2079.1,0.55870425]
[1773475786125,0.58097961,2079.8,2079.2,0.55870425]
[1773475786519,0.58097961,2079.6,2079.0,0.55870425]
[1773475790938,0.57240376,2079.4,2078.9,0.00391636]
[1773475791126,0.57240376,2079.4,2078.8,0.57684744]
[1773475792130,0.55267406,2079.6,2079.0,0.56961205]
[1773475796240,0.55267406,2079.5,2078.8,0.57469492]
[1773475797138,0.55267406,2079.5,2079.0,0.56961205]
[1773475798936,0.55267406,2079.5,2078.8,0.57469492]
[1773475818357,0.55267406,2079.4,2078.8,0.57469492]
[1773475821257,6.39796101,2079.6,2078.8,0.57469492]
[1773475821662,6.39796101,2079.5,2078.8,0.57469492]
[1773475821961,0.57114903,2079.5,2078.8,0.57469492]
[1773475822560,6.39768411,2079.5,2078.8,0.57469492]
[1773475822761,0.57114903,2079.5,2078.8,0.57469492]
[1773475824156,6.39769306,2079.5,2078.8,0.57469492]
[1773475824361,0.57114903,2079.5,2078.8,0.57469492]
[1773475825558,6.39856764,2079.6,2078.8,0.57469492]
[1773475825763,0.57114903,2079.6,2078.8,0.57469492]
[1773475826262,6.39908563,2079.6,2078.8,0.57469492]
[1773475826457,0.57114903,2079.6,2078.8,0.57469492]
[1773475826965,6.39956723,2079.6,2078.8,0.57469492]
[1773475827262,0.57114903,2079.6,2078.8,0.57469492]
[1773475827661,6.39938673,2079.6,2078.8,0.57469492]
[1773475827861,0.57114903,2079.6,2078.8,0.57469492]
[1773475828265,6.39938673,2079.6,2078.8,0.57469492]
[1773475828464,0.57114903,2079.6,2078.8,0.57469492]
[1773475829062,6.39937152,2079.6,2078.8,0.57469492]
[1773475829264,0.57114903,2079.6,2078.8,0.57469492]
[1773475829757,6.39916236,2079.6,2078.8,0.57469492]
[1773475829963,0.57114903,2079.6,2078.8,0.57469492]
[1773475830365,6.39916236,2079.6,2078.8,0.57469492]
[1773475830564,0.57114903,2079.6,2078.8,0.57469492]
[1773475830967,0.57114903,2079.6,2078.9,0.54816395]
[1773475831661,5.82787342,2079.7,2078.9,0.54816395]
[1773475831861,6.39902245,2079.7,2078.9,0.54816395]
[1773475832258,0.57114903,2079.7,2079.0,0.54816395]
[1773475835363,5.82400595,2080.0,2079.0,0.54816395]
[1773475835364,0.57114903,2079.9,2079.0,0.54816395]
[1773475847179,0.57114903,2079.8,2079.0,0.54816395]
[1773475848376,0.58373314,2079.9,2079.0,0.54816395]
[1773475856189,0.58373314,2079.9,2079.1,0.57794849]
[1773475862493,0.58373314,2079.9,2079.2,0.57794849]
[1773475865192,0.58373314,2079.9,2079.1,0.57794849]
[1773475866995,0.58373314,2079.9,2078.9,8.11271934]
[1773475867495,0.58373314,2079.9,2079.0,0.57794849]
[1773475871589,0.5534918,2079.8,2079.0,0.57794849]
[1773475875195,5.82193676,2079.8,2079.0,0.57794849]
[1773475875394,0.5534918,2079.7,2079.0,0.57794849]
[1773475877300,0.5534918,2079.7,2079.1,0.57794849]
[1773475884501,0.562962,2079.9,2079.1,0.57794849]
[1773475884697,0.562962,2079.9,2079.3,0.59222121]
[1773475886298,6.06239435,2080.1,2079.3,0.59222121]
[1773475886499,0.562962,2080.0,2079.5,0.59222121]
[1773475886804,0.562962,2080.1,2079.5,0.59222121]
[1773475900510,0.562962,2080.1,2079.7,0.59222121]
[1773475907217,0.00356045,2080.2,2079.7,0.59222121]
[1773475907417,0.54447361,2080.2,2079.7,0.59222121]
[1773475919825,0.00356045,2080.2,2079.7,0.59222121]
[1773475920020,0.58097011,2080.2,2079.7,0.59222121]
[1773475920325,0.00356045,2080.2,2079.8,0.58440371]
[1773475922025,0.58097011,2080.2,2079.8,0.58440371]
[1773475922430,0.00356045,2080.2,2079.8,0.58440371]
[1773475923328,0.58097011,2080.2,2079.8,0.58440371]
[1773475923530,0.58097011,2080.2,2079.6,0.58440371]
[1773475926829,0.58097011,2080.2,2079.7,0.58440371]
[1773475930535,0.00356045,2080.2,2079.7,0.58440371]
[1773475930735,0.57740966,2080.3,2079.7,0.58440371]
[1773475931636,0.58351706,2080.3,2079.7,0.58440371]
[1773475931837,0.58351706,2080.3,2079.9,0.58440371]
[1773475935240,0.0061074,2080.3,2079.9,0.58440371]
[1773475935629,0.57740966,2080.5,2079.9,0.58440371]
[1773475936530,0.58331634,2080.5,2079.9,0.58440371]
[1773475942350,0.00590668,2080.5,2080.0,0.54792468]
[1773475942939,0.55849046,2080.5,2080.0,0.54792468]
[1773475947243,0.00590668,2080.5,2080.0,0.54792468]
[1773475947445,0.55849046,2080.5,2080.0,0.54792468]
[1773475954255,0.55849046,2080.5,2079.9,25.329]
[1773475954552,0.55849046,2080.5,2079.9,25.87692468]
[1773475954852,0.55849046,2080.5,2079.9,25.329]
[1773475956050,0.55849046,2080.5,2079.9,25.87692468]
[1773475958960,0.55849046,2080.5,2080.0,0.54792468]
[1773475975165,0.55849046,2080.5,2079.8,0.58775167]
[1773475981677,0.55849046,2080.5,2079.6,0.58775167]
[1773475982278,0.55635636,2080.4,2079.7,0.58775167]
[1773475988589,0.00590668,2080.5,2079.7,0.58775167]
[1773475988789,0.56226304,2080.5,2079.7,0.58775167]
[1773475989088,0.56226304,2080.5,2079.9,0.58775167]
[1773475993988,0.56226304,2080.5,2079.8,41.38775167]
[1773475994891,0.56226304,2080.5,2079.8,0.58775167]
[1773476009399,0.57467917,2080.4,2079.8,0.58775167]
[1773476011600,0.57467917,2080.4,2080.0,0.53898724]
[1773476012112,0.00590668,2080.5,2080.0,0.53898724]
[1773476013404,5.86170659,2080.5,2080.0,0.53898724]
[1773476013606,0.00590668,2080.5,2080.0,0.53898724]
[1773476015305,0.58058585,2080.5,2080.0,0.53898724]
[1773476015909,6.42436171,2080.5,2080.0,0.53898724]
[1773476016209,0.58058585,2080.5,2080.0,0.53898724]
[1773476030615,0.00590668,2080.5,2080.0,0.53898724]
[1773476031320,0.57812872,2080.5,2080.0,0.53898724]
[1773476032624,0.00590668,2080.5,2080.0,0.53898724]
[1773476036635,0.57222204,2080.8,2080.0,0.53898724]
[1773476037538,0.57659884,2080.8,2080.0,0.53898724]
[1773476049139,0.0043768,2080.8,2080.4,0.56682517]
[1773476049344,0.0043768,2080.8,2080.4,0.57063984]
[1773476050241,5.60551088,2081.1,2080.7,1.5163123]
[1773476050550,0.57222204,2081.2,2080.4,0.00381467]
[1773476051040,0.57222204,2081.2,2080.4,0.57063984]
[1773476051440,0.57699366,2081.2,2080.4,0.57063984]
[1773476051640,0.57222204,2081.1,2080.4,0.57063984]
[1773476068854,0.59058247,2081.0,2080.4,0.57063984]
[1773476072861,0.59058247,2081.0,2080.4,0.00381467]
[1773476073160,0.59058247,2081.0,2080.2,0.56442861]
[1773476074055,0.59058247,2081.0,2080.2,0.56974996]
[1773476074960,0.59058247,2080.9,2080.2,0.56974996]
[1773476075161,0.59058247,2080.8,2080.2,0.56974996]
[1773476099286,0.59058247,2080.8,2080.1,0.54303038]
[1773476100486,0.59058247,2080.8,2080.1,0.54736514]
[1773476101085,0.5653867,2080.7,2080.1,0.54736514]
[1773476101487,0.5653867,2080.6,2080.1,0.54736514]
[1773476101684,0.5653867,2080.6,2080.1,0.00433476]
[1773476101885,0.5653867,2080.6,2080.1,0.54736514]
[1773476105787,5.80514332,2080.9,2080.1,0.54736514]
[1773476105981,0.5653867,2080.9,2080.1,0.54736514]
[1773476106487,0.5653867,2081.0,2080.2,0.54303038]
[1773476107784,0.5653867,2081.0,2080.3,0.54303038]
[1773476108986,0.5653867,2080.9,2080.3,0.54303038]
[1773476113591,0.5653867,2081.1,2080.3,0.54303038]
[1773476115690,0.5653867,2081.0,2080.3,0.54303038]
[1773476118390,6.36972607,2081.2,2080.3,0.54303038]
[1773476118586,0.5653867,2081.1,2080.3,0.54303038]
[1773476124102,0.57969884,2081.0,2080.3,0.54303038]
[1773476124301,0.57969884,2080.9,2080.3,0.54303038]
[1773476131302,0.57969884,2081.1,2080.4,0.58576318]
[1773476133614,0.57969884,2081.0,2080.4,0.58576318]
[1773476135214,0.57969884,2080.9,2080.4,0.58576318]
[1773476138714,0.57969884,2080.9,2080.2,0.58576318]
[1773476139012,0.57969884,2080.8,2080.1,0.59009794]
[1773476139216,0.57969884,2080.7,2080.1,0.59009794]
[1773476140819,0.57969884,2080.8,2080.2,0.58576318]
[1773476141914,0.57969884,2080.8,2080.1,0.59009794]
[1773476142113,0.57969884,2080.7,2080.1,0.59009794]
[1773476147422,0.57969884,2080.7,2080.1,0.00433476]
[1773476149221,2.0956195,2080.7,2080.1,0.00433476]
[1773476149423,0.57819352,2080.6,2080.1,0.00433476]
[1773476150517,0.57819352,2080.3,2079.7,0.56839504]
[1773476150714,0.57819352,2080.0,2079.6,0.56839504]
[1773476150920,0.57819352,2080.0,2079.3,0.38521367]
[1773476151118,0.57819352,2080.0,2079.4,0.38611092]
[1773476151424,0.57819352,2080.0,2079.4,0.39082384]
[1773476151821,0.57819352,2080.0,2079.4,0.00471292]
[1773476153724,0.57819352,2080.0,2079.4,0.39400505]
[1773476158734,0.57819352,2080.0,2079.4,0.3736445]
[1773476167944,0.57819352,2080.0,2079.4,0.00471292]
[1773476168244,0.57819352,2080.0,2079.4,0.3643527]
[1773476171448,0.5612569,2079.6,2079.2,0.3531972]
[1773476172047,0.5612569,2079.6,2078.9,25.787]
[1773476172248,0.5612569,2079.6,2079.1,0.00439061]
[1773476172548,0.56627651,2079.6,2079.1,0.00825671]
[1773476177651,0.58682028,2079.9,2079.2,0.02056739]
[1773476178851,0.59127177,2079.9,2079.2,0.02056739]
[1773476179757,0.00445149,2079.9,2079.2,0.02056739]
[1773476182158,0.5813877,2079.9,2079.2,0.02056739]
[1773476195070,0.5813877,2079.9,2079.1,0.03987859]
[1773476203879,0.5813877,2079.9,2079.1,0.28106452]
[1773476204179,0.5813877,2079.9,2079.2,0.03374883]
[1773476212483,0.5813877,2079.9,2079.1,0.0038661]
[1773476213978,6.43226808,2079.9,2079.1,0.0038661]
[1773476214182,0.57890434,2079.8,2079.1,0.0038661]
[1773476219088,0.57890434,2079.8,2079.1,0.04108928]
[1773476221894,0.57890434,2079.8,2079.1,0.0038661]
[1773476222794,0.57890434,2079.8,2078.9,66.77659036]
[1773476222988,0.57676204,2079.7,2078.9,66.733]
[1773476223794,0.57676204,2079.7,2078.9,66.7390377]
[1773476224691,0.57676204,2079.7,2078.9,66.7918099]
[1773476225195,0.57676204,2079.7,2079.0,0.05279447]
[1773476225497,0.57676204,2080.1,2079.2,0.58497195]
[1773476226596,0.58225239,2080.1,2079.2,0.58497195]
[1773476232609,0.58225239,2080.1,2079.0,0.58497195]
[1773476237604,0.57676204,2079.9,2079.0,0.58497195]
[1773476240405,1.51762283,2079.8,2079.0,0.58497195]
[1773476240705,0.57676204,2079.7,2079.0,0.58497195]
[1773476240902,1.51762283,2079.6,2078.9,66.7390377]
[1773476241112,0.57676204,2079.5,2078.9,66.7390377]
[1773476241306,0.57676204,2079.5,2078.9,25.9390377]
[1773476242902,0.57676204,2079.5,2078.9,0.0060377]
[1773476244107,0.57203552,2079.3,2078.7,0.54126665]
[1773476245113,0.57203552,2079.3,2078.7,0.54689845]
[1773476247616,1.51762283,2079.4,2078.7,0.54689845]
[1773476247818,0.57203552,2079.5,2078.7,0.54689845]
[1773476250613,1.51762283,2079.6,2078.7,0.0056318]
[1773476250614,0.57203552,2079.3,2078.7,0.0056318]
[1773476250819,0.57203552,2079.1,2078.7,0.0056318]
[1773476251117,0.57203552,2079.1,2078.5,0.54126665]
[1773476251419,0.57203552,2079.1,2078.5,41.34126665]
[1773476251921,0.57203552,2079.1,2078.5,41.34510334]
[1773476254023,0.57203552,2079.1,2078.6,0.54126665]
[1773476269730,0.57989161,2078.9,2078.3,0.57076332]
[1773476270927,0.57989161,2078.9,2078.3,0.57500055]
[1773476281144,0.57989161,2078.9,2078.2,0.5559044]
[1773476281441,0.59071913,2078.8,2078.1,27.2249044]
[1773476282144,0.59071913,2078.8,2078.1,27.22988333]
[1773476283140,0.59071913,2078.8,2078.2,0.5559044]
[1773476285741,0.59071913,2078.8,2078.1,27.22988333]
[1773476286144,0.59071913,2078.8,2078.2,0.5559044]
[1773476287340,0.59071913,2078.7,2078.2,0.5559044]
[1773476287545,0.59071913,2078.6,2078.2,0.5559044]
[1773476287845,0.5968755,2078.6,2078.1,0.56088333]
[1773476308657,0.00615637,2078.6,2078.1,0.56088333]
[1773476310455,5.86666892,2078.9,2078.1,0.56088333]
[1773476310662,0.53976039,2079.0,2078.2,0.57928134]
[1773476310954,0.53976039,2078.6,2077.7,0.57928134]
[1773476311355,0.53976039,2078.5,2077.7,0.57928134]
[1773476312059,0.54591761,2078.5,2077.7,0.58408744]
[1773476315258,0.53976039,2078.4,2077.7,0.58408744]
[1773476329468,0.56070924,2078.5,2077.7,0.58408744]
[1773476333878,0.00615722,2078.5,2077.7,0.58408744]
[1773476339980,0.57749777,2078.5,2077.7,0.58408744]
[1773476353191,0.57134055,2078.4,2077.7,0.58408744]
[1773476357994,0.57134055,2078.3,2077.7,0.58408744]
[1773476359988,0.57134055,2078.2,2077.3,40.8]
[1773476360197,0.57134055,2078.1,2077.2,26.881]
[1773476360697,0.57134055,2078.0,2077.2,27.45152472]
[1773476360898,0.57134055,2078.0,2077.2,27.45566579]
[1773476361597,0.55679463,2077.9,2077.2,27.45566579]
[1773476361898,0.55679463,2077.9,2077.3,0.57055348]
[1773476367697,0.55679463,2077.7,2077.2,0.57469455]
[1773476372800,0.55679463,2077.6,2077.2,0.57469455]
[1773476373101,0.55679463,2077.6,2077.0,0.57055348]
[1773476373301,0.55679463,2077.6,2076.8,0.57055348]
[1773476373904,0.55679463,2077.4,2076.8,0.57055348]
[1773476374098,0.55679463,2077.4,2076.8,0.57612887]
[1773476379005,0.55679463,2077.6,2076.8,0.57612887]
[1773476380801,0.55679463,2077.4,2076.8,0.57612887]
[1773476394506,6.42351252,2077.7,2077.0,0.58032575]
[1773476394711,0.55039109,2077.7,2077.2,0.58032575]
[1773476396113,0.55039109,2077.7,2077.0,0.58032575]
[1773476400213,0.55039109,2077.7,2077.1,1.52056081]
[1773476400414,0.55039109,2077.7,2077.2,0.58032575]
[1773476401906,0.55039109,2077.7,2077.1,0.58032575]
[1773476402306,0.55039109,2077.7,2076.9,0.58032575]
[1773476402507,0.55039109,2077.7,2076.8,0.58590114]
[1773476402712,0.55039109,2077.6,2076.8,0.58590114]
[1773476407719,0.55039109,2077.6,2077.0,0.58032575]
[1773476407919,0.55039109,2077.6,2077.2,0.58032575]
[1773476411325,0.55039109,2077.6,2077.0,0.58032575]
[1773476416931,0.55039109,2077.7,2077.2,0.58032575]
[1773476420233,6.44091135,2077.9,2077.4,0.58032575]
[1773476420435,0.55039109,2077.9,2077.4,0.58032575]
[1773476421430,0.55406569,2077.8,2077.4,0.58032575]
[1773476422134,0.55406569,2078.0,2077.4,0.58032575]
[1773476423334,0.55406569,2078.0,2077.2,0.55625408]
[1773476423530,0.55406569,2077.9,2077.2,0.55625408]
[1773476423734,0.55406569,2077.8,2077.2,0.55625408]
[1773476424231,0.55406569,2077.8,2076.9,0.55625408]
[1773476432736,0.55406569,2077.8,2077.0,0.55625408]
[1773476434039,0.55406569,2078.1,2077.0,0.55625408]
[1773476434343,0.55406569,2078.0,2077.0,0.55625408]
[1773476442047,0.55406569,2077.8,2076.8,0.56182947]
[1773476442347,0.55406569,2077.6,2076.8,0.56182947]
[1773476442547,0.55406569,2077.5,2076.8,0.56182947]
[1773476471057,6.45533146,2077.5,2076.8,0.56182947]
[1773476471256,0.55406569,2077.5,2076.8,0.56182947]
[1773476471759,6.46716109,2077.5,2076.8,0.56182947]
[1773476471959,0.55406569,2077.5,2076.8,0.56182947]
[1773476472759,6.46763128,2077.5,2076.8,0.56182947]
[1773476472960,0.55406569,2077.5,2076.8,0.56182947]
[1773476473451,5.9160764,2077.5,2076.8,0.56182947]
[1773476473658,0.54992046,2077.6,2076.8,0.56182947]
[1773476473958,6.46646723,2077.5,2076.8,0.56182947]
[1773476474158,0.54992046,2077.5,2076.8,0.56182947]
[1773476474659,6.46644955,2077.5,2076.8,0.56182947]
[1773476474850,0.54992046,2077.5,2076.8,0.56182947]
[1773476475254,6.46647081,2077.5,2076.8,0.56182947]
[1773476475459,0.54992046,2077.5,2076.8,0.56182947]
[1773476475959,6.46646666,2077.5,2076.8,0.56182947]
[1773476476259,0.54992046,2077.5,2076.8,0.56182947]
[1773476476760,6.46644823,2077.5,2076.8,0.56182947]
[1773476477058,0.54992046,2077.5,2076.8,0.56182947]
[1773476477450,0.54992046,2077.4,2076.8,0.56182947]
[1773476485555,0.54992046,2077.4,2076.9,0.57023473]
[1773476486360,0.5728249,2077.6,2077.1,0.57023473]
[1773476486555,6.48915906,2077.6,2077.1,0.57023473]
[1773476486759,0.5728249,2077.6,2077.1,0.57023473]
[1773476487460,0.5728249,2077.5,2077.1,0.57023473]
[1773476488061,0.5728249,2077.5,2076.9,0.57023473]
[1773476497067,0.5728249,2077.5,2077.0,0.57023473]
[1773476498969,0.5728249,2077.6,2077.0,0.57023473]
[1773476499772,0.5728249,2077.6,2076.9,1.52068414]
[1773476499773,0.5728249,2077.6,2077.2,0.57023473]
[1773476503874,0.5728249,2077.6,2077.0,0.57023473]
[1773476504074,0.5728249,2077.6,2076.9,0.57023473]
[1773476504572,0.5728249,2077.6,2077.2,0.57023473]
[1773476504773,0.5728249,2078.0,2077.3,1.52068414]
[1773476505074,6.48292432,2078.0,2077.4,0.57023473]
[1773476505281,0.5728249,2078.0,2077.4,0.57023473]
[1773476506374,0.5728249,2077.9,2077.4,0.57023473]
[1773476515384,0.57866974,2078.1,2077.4,0.57023473]
[1773476517381,0.57866974,2078.1,2077.6,0.57354147]
[1773476520386,0.57866974,2078.3,2077.8,0.57354147]
[1773476520586,0.57866974,2078.2,2077.8,0.57354147]
[1773476522281,0.57866974,2078.4,2077.9,1.52068414]
[1773476522483,0.57866974,2078.4,2078.0,0.57354147]
[1773476524384,0.00615722,2078.5,2078.0,0.57354147]
[1773476524786,0.21350396,2078.5,2078.0,0.57354147]
[1773476524992,0.00615722,2078.5,2078.0,0.57354147]
[1773476525990,0.20734674,2078.7,2078.0,0.57354147]
[1773476527088,0.21101255,2078.7,2078.0,0.57354147]
[1773476529891,0.00366581,2078.7,2078.0,0.57354147]
[1773476531295,0.17881935,2078.7,2078.0,0.57354147]
[1773476535603,0.17881935,2078.7,2077.8,0.23796855]
[1773476535604,0.00366581,2078.7,2078.2,0.57354147]
[1773476549105,0.11921427,2079.0,2078.2,0.57354147]
[1773476549504,5.99766931,2079.0,2078.2,0.57354147]
[1773476549711,0.11921427,2079.0,2078.2,0.57354147]
[1773476550214,0.12339264,2079.0,2078.2,0.57354147]
[1773476552313,0.00417837,2079.0,2078.2,0.57354147]
[1773476554116,5.89790697,2079.0,2078.2,0.57354147]
[1773476557616,6.01724802,2079.0,2078.2,0.57354147]
[1773476557817,5.8937286,2078.9,2078.2,0.57354147]
[1773476558012,0.12351942,2079.0,2078.2,0.57354147]
[1773476558414,6.02311631,2079.0,2078.2,0.57354147]
[1773476558615,5.89959689,2078.9,2078.2,0.57354147]
[1773476558817,0.11932808,2078.7,2078.1,0.56577834]
[1773476559016,0.12042382,2078.6,2078.1,0.56577834]
[1773476559213,0.12042382,2078.6,2077.8,0.23796855]
[1773476559214,0.12042382,2078.6,2077.9,0.56577834]
[1773476561319,0.10553119,2078.5,2077.9,0.56577834]
[1773476579027,0.12329616,2078.7,2077.9,0.56577834]
[1773476584323,0.12335344,2078.6,2077.9,0.56577834]
[1773476584525,6.03516297,2078.6,2077.9,0.56577834]
[1773476584728,0.12335344,2078.6,2077.9,0.56577834]
[1773476585332,6.04081611,2078.6,2077.9,0.56577834]
[1773476585526,0.12335344,2078.6,2077.9,0.56577834]
[1773476586226,6.04190292,2078.6,2077.9,0.56577834]
[1773476586428,0.12335344,2078.6,2077.9,0.56577834]
[1773476587025,5.91991958,2078.6,2077.9,0.56577834]
[1773476587225,11.58084125,2078.9,2077.9,0.56577834]
[1773476587420,5.92178428,2078.8,2077.9,0.56577834]
[1773476587628,5.92178428,2078.7,2077.9,0.56577834]